Cogmind - Beta 16.1 @@@ ROGUE MODE // 2026.03.06 @ 00:19:09 Player: Deloads Result: Destroyed by S-27 Virus with Autogun Performance ------------- Evolutions (4) 2000 Regions Visited (10) 2000 Robots Destroyed (31) 155 Value Destroyed (941) 941 Prototype IDs (23) 460 Alien Tech Used (0) 0 Bonus (500) 500 TOTAL SCORE: 6056 Bonus ------- Entered Garrisons 200 Aligned with FarCom 300 Cogmind --------- Core Integrity 0/850 Matter 300/300 Energy 100/100 System Corruption 2% Temperature Cool (0) Movement Core (50) Location -6/Garrison Parts ------- > --- POWER (2) -------- (None) > --- PROPULSION (4) --- (None) > --- UTILITY (7) ------ Core Analyzer > --- WEAPON (2) ------- (None) > --- INVENTORY (5) ---- ECM Suite ECM Suite Assault Rifle Peak State ------------ > --- POWER ------------ Ion Engine Light Deuterium Engine > --- PROPULSION ------- Light Treads Light Treads Light Treads Medium Treads > --- UTILITY ---------- Large Storage Unit Targeting Computer Core Analyzer ECM Suite Hardened Medium Armor Plating > --- WEAPON ----------- AWS/Thermal > --- INVENTORY -------- Light Nuclear Core VTOL Module VTOL Module Medium Storage Unit ECM Suite ECM Suite Assault Rifle Assault Rifle Advanced Assault Cannon Mining Laser [Rating: 38] Favorites ----------- Power Light Ion Engine Engine Light Ion Engine Power Core Light Nuclear Core Propulsion Wheel Treads Light Treads Wheel Wheel Flight Unit VTOL Module Utility Seismic Detector Device Seismic Detector Storage Large Storage Unit Processor Core Analyzer Protection Hardened Medium Armor Plating Weapon Assault Rifle Energy Gun AWS/Thermal Ballistic Gun Assault Rifle Build | -11 -10 -10 -10 -9 -8 -7 -7 -7 -6 -6 ------- Run | Yrd Mat Min Exi Min Mat Fac Low Low Fac Gar Slots Evolved 8 | . . . . . 4 2 . . 2 . Power 1 | . . . . . . 1 . . . . Propulsion 2 | . . . . . 2 . . . . . Utility 5 | . . . . . 2 1 . . 2 . Weapon . | . . . . . . . . . . . Parts Attached 34 | 7 3 1 2 . 5 5 9 . 1 1 Power 5 | 1 . . . . . 3 1 . . . Engine 4 | 1 . . . . . 3 . . . . Core 1 | . . . . . . . 1 . . . Reactor . | . . . . . . . . . . . Propulsion 11 | 2 2 . . . 2 . 5 . . . Treads 5 | 2 . . . . . . 3 . . . Leg . | . . . . . . . . . . . Wheel 4 | . 2 . . . 2 . . . . . Hover . | . . . . . . . . . . . Flight 2 | . . . . . . . 2 . . . Utility 11 | 2 . 1 . . 3 2 2 . 1 . Device 3 | 1 . . . . . 1 . . 1 . Storage 3 | 1 . 1 . . 1 . . . . . Processor 4 | . . . . . 1 1 2 . . . Hackware . | . . . . . . . . . . . Protection 1 | . . . . . 1 . . . . . Artifact . | . . . . . . . . . . . Weapon 7 | 2 1 . 2 . . . 1 . . 1 Energy Gun 3 | 1 . . 2 . . . . . . . Energy Cannon . | . . . . . . . . . . . Ballistic Gun 4 | 1 1 . . . . . 1 . . 1 Ballistic Cannon . | . . . . . . . . . . . Launcher . | . . . . . . . . . . . Special Weapon . | . . . . . . . . . . . Impact Weapon . | . . . . . . . . . . . Slashing Weapon . | . . . . . . . . . . . Piercing Weapon . | . . . . . . . . . . . Special Melee Weapon . | . . . . . . . . . . . Unidentified Prototypes . | . . . . . . . . . . . Parts Lost 20 | . 1 . . . 1 1 11 . . 6 Power 4 | . . . . . 1 1 1 . . 1 Propulsion 10 | . 1 . . . . . 7 . . 2 Utility 4 | . . . . . . . 2 . . 2 Weapon 2 | . . . . . . . 1 . . 1 Highest Loss Streak 6 | . 1 . . . 1 1 5 . . 6 To Critical Strikes 1 | . . . . . . . 1 . . . Average Backups 8 | 5 7 8 8 8 6 8 9 4 4 3 Power 1 | . 1 2 2 2 2 1 . . . . Propulsion 3 | 3 4 3 3 3 1 1 3 . . . Utility 1 | . . 1 1 1 1 2 2 2 2 2 Weapon 2 | . 1 2 2 2 2 2 2 2 2 1 Tool/Special . | . . . . . . . . . . . Unused Backups 8 | 2 2 . . . . . 2 . . 2 Power . | . . . . . . . . . . . Propulsion 4 | 2 2 . . . . . . . . . Utility 2 | . . . . . . . . . . 2 Weapon 2 | . . . . . . . 2 . . . Tool/Special . | . . . . . . . . . . . Average Slot Usage (%) 81 | . 91 100 93 85 78 85 70 46 40 25 Engine 10 | . 14 14 14 14 7 8 9 . . . Treads 4 | . 18 . . . . . 2 . . . Wheel 16 | . 1 28 28 28 35 30 12 . . . Flight 2 | . . . . . . . 4 15 13 6 Device 11 | . 14 14 14 14 9 13 7 7 6 4 Storage 9 | . 14 14 14 14 9 7 4 . . . Processor 6 | . . . . . 8 8 14 15 13 10 Protection 2 | . . . . . . 7 3 . . . Energy Gun 3 | . 2 . 7 14 9 7 3 . . . Ballistic Gun 11 | . 26 28 14 . . . 2 . . . Peak Build Rating 38 | 7 7 7 22 22 27 34 38 14 18 18 Average Rating 17 | 5 6 7 13 21 24 30 25 14 14 8 On Entrance 15 | . 7 7 7 22 21 27 34 14 14 14 Avg Prop Armor Cover (%) . | . . . . . . . . . . . Naked Turns . | . . . . . . . . . . . Heaviest Build 49 | 13 13 17 22 22 37 49 49 7 7 7 Greatest Support 88 | 40 40 20 20 20 46 46 88 8 8 8 Greatest Overweight (x) 4 | . . . 1 1 . 1 4 . . 2 Average Overweight (x) . | . . . . 1 . . . . . . Largest Inventory Capacity 15 | 8 8 10 10 10 15 15 15 5 5 5 Average Capacity 10 | 7 8 9 10 10 14 15 11 5 5 5 Most Carried 14 | 8 8 8 10 9 7 12 14 5 5 5 Average Carried 8 | 5 7 8 8 8 6 8 10 5 5 3 Final Capacity 15 | 8 8 10 10 10 15 15 5 5 5 5 Final Carried 12 | 8 8 8 9 8 7 12 5 5 5 3 Class Distribution -------------------- 63% | Scavenger-Mutant 32% | Mutant 4% | Scavenger-Sprinter Dominant Class ---------------- Mutant | -10/Materials Scavenger-Mutant | -10/Mines Mutant | -10/Exiles Mutant | -9/Mines Scavenger-Mutant | -8/Materials Scavenger-Mutant | -7/Factory Scavenger-Mutant | -7/Lower Caves Scavenger-Mutant | -7/Lower Caves Scavenger-Sprinter | -6/Factory Mutant | -6/Garrison Resources | -11 -10 -10 -10 -9 -8 -7 -7 -7 -6 -6 ----------- Run | Yrd Mat Min Exi Min Mat Fac Low Low Fac Gar Matter Collected 730 | 300 103 9 . 17 31 61 199 . . 10 Remotely . | . . . . . . . . . . . Salvage Created 1110 | 113 246 . . 19 153 277 302 . . . Parts 68 | 11 21 . . . 6 11 19 . . . Haulers Intercepted . | . . . . . . . . . . . Recyclers Shooed . | . . . . . . . . . . . Parts Field Recycled . | . . . . . . . . . . . Retrieved Matter . | . . . . . . . . . . . Parts Self-Destructed 15 | . . . . . . . 15 . . . Prevented . | . . . . . . . . . . . Parts Restored . | . . . . . . . . . . . Kills | -11 -10 -10 -10 -9 -8 -7 -7 -7 -6 -6 ------- Run | Yrd Mat Min Exi Min Mat Fac Low Low Fac Gar Combat Hostiles Destroyed 25 | . 9 . . 1 2 5 8 . . . Guns 25 | . 9 . . 1 2 5 8 . . . Classes Destroyed 9 | 2 3 . . 1 1 1 1 . . . Worker 2 | 2 . . . . . . . . . . Tunneler 3 | 3 . . . . . . . . . . Watcher 2 | . 1 . . . 1 . . . . . Swarmer 10 | . 6 . . . . . 4 . . . Grunt 6 | . 3 . . . 1 2 . . . . Sentry 3 | . . . . . 1 2 . . . . Hunter 4 | . . . . . . 1 3 . . . Programmer 1 | . . . . . . . 1 . . . Assembled 1 | . . . . 1 . . . . . . Best Kill Streak 4 | 3 4 . . 1 2 2 4 . . . Combat Bots Only 4 | . 4 . . 1 1 2 4 . . . Max Kills in Single Turn 2 | 1 2 . . 1 1 1 1 . . . Gunslinging 1 | . 1 . . . . . . . . . Exploded . | . . . . . . . . . . . Melee . | . . . . . . . . . . . Uniques/NPCs Destroyed . | . . . . . . . . . . . Combat | -11 -10 -10 -10 -9 -8 -7 -7 -7 -6 -6 -------- Run | Yrd Mat Min Exi Min Mat Fac Low Low Fac Gar Hostile Shots Fired 294 | . 54 . . 5 2 40 116 . . 77 Missed 90 | . 10 . . 2 1 20 38 . . 19 Hits 204 | . 44 . . 3 1 20 78 . . 58 Projectile 204 | . 44 . . 3 1 20 78 . . 58 AOE 1 | . . . . 1 . . . . . . Critical Strikes 7 | . 1 . . . . 2 3 . . 1 Damage Taken 3189 | 69 443 31 . 65 12 333 1156 . . 1080 Core 1249 | 19 34 13 . 36 . 27 253 . . 867 Absorbed by Shields . | . . . . . . . . . . . Core Remaining (%) 77 | 92 . . . 59 100 . . 60 . . Volleys Fired 71 | 10 23 . . . . . 36 . . 2 Largest 2 | 2 2 . . . . . 1 . . 1 Hottest 60 | 60 60 . . . . . 20 . . 30 Shots Fired 183 | 20 46 . . 19 11 22 63 . . 2 Gun 183 | 20 46 . . 19 11 22 63 . . 2 Cannon . | . . . . . . . . . . . Launcher . | . . . . . . . . . . . Special . | . . . . . . . . . . . Kinetic 89 | 10 41 . . . . . 36 . . 2 Thermal 79 | . . . . 19 11 22 27 . . . Explosive . | . . . . . . . . . . . Electromagnetic 15 | 10 5 . . . . . . . . . Robot Hit Streak 23 | 7 5 . . 7 5 16 23 . . 4 Robot Miss Streak 8 | 2 8 . . 3 1 1 4 . . 1 Penetration Max . | . . . . . . . . . . . Secondary Targets 1 | . 1 . . . . . . . . . Max Gunslinging Chain 1 | . 1 . . . . . . . . . Autonomous 80 | . . . . 19 11 22 28 . . . Shots Hit Robots 126 | 14 24 . . 12 9 21 45 . . 1 Core Hits 52 | 5 14 1 . 1 4 10 13 . . 4 Critical Kills . | . . . . . . . . . . . Critical Parts Destroyed . | . . . . . . . . . . . Critical Strikes . | . . . . . . . . . . . Melee Attacks . | . . . . . . . . . . . Impact . | . . . . . . . . . . . Slashing . | . . . . . . . . . . . Piercing . | . . . . . . . . . . . Sneak Attacks . | . . . . . . . . . . . Combat Hostiles . | . . . . . . . . . . . Follow-up Attacks . | . . . . . . . . . . . Damage Inflicted 2803 | 258 264 41 . 356 263 615 940 . . 66 Guns 2637 | 182 264 . . 350 263 613 940 . . 25 Cannons . | . . . . . . . . . . . Explosions 76 | 76 . . . . . . . . . . Melee . | . . . . . . . . . . . Ramming 90 | . . 41 . 6 . 2 . . . 41 Kinetic 540 | 78 211 . . . . . 226 . . 25 Thermal 2016 | 76 . . . 350 263 613 714 . . . Explosive . | . . . . . . . . . . . Electromagnetic 157 | 104 53 . . . . . . . . . Impact . | . . . . . . . . . . . Slashing . | . . . . . . . . . . . Piercing . | . . . . . . . . . . . Highest Corruption 2 | . . 1 1 1 . . 2 2 . 2 Average Corruption 1 | . . 1 1 1 . . 1 2 . 2 Corruption Purged . | . . . . . . . . . . . Corruption Blocked . | . . . . . . . . . . . Effects 9 | . . . . . . . 9 . . . Message Errors 3 | . . . . . . . 3 . . . Matter Fused 3 | . . . . . . . 3 . . . Heat Flow Errors 1 | . . . . . . . 1 . . . Data Loss (minor) 2 | . . . . . . . 2 . . . Overload Shots . | . . . . . . . . . . . Overflow Damage 30 | 30 . . . . . . . . . . Projectiles . | . . . . . . . . . . . Explosions 30 | 30 . . . . . . . . . . Melee . | . . . . . . . . . . . Knockbacks 2 | . . 2 . . . . . . . . Impact 2 | . . 2 . . . . . . . . Kinetic . | . . . . . . . . . . . Secondary . | . . . . . . . . . . . Self-Inflicted Damage 110 | 69 . 19 . 3 . 1 . . . 18 Shots 2 | 2 . . . . . . . . . . Rammed 22 | . 1 7 . 1 . 1 . . . 12 Targets Rammed 22 | . 1 7 . 1 . 1 . . . 12 Kicked . | . . . . . . . . . . . Crushed . | . . . . . . . . . . . Highest Temperature 139 | 20 24 . . . . 3 139 . . 2 Average Temperature 21 | 13 11 . . . . 3 70 . . 2 Received Heat Transfer 296 | . 84 . . 20 . 84 45 . . 63 Siege Activations . | . . . . . . . . . . . Martial Activations . | . . . . . . . . . . . Shielding Activations . | . . . . . . . . . . . Robots Disrupted . | . . . . . . . . . . . Combat Hostiles . | . . . . . . . . . . . Robots Corrupted . | . . . . . . . . . . . Combat Hostiles . | . . . . . . . . . . . Parts Fried . | . . . . . . . . . . . Impact Corruptions . | . . . . . . . . . . . Robots Melted . | . . . . . . . . . . . Combat Hostiles . | . . . . . . . . . . . Parts Melted 4 | . . . . . . 3 1 . . . Heat Transferred 2455 | 50 . . . 444 333 777 851 . . . Parts Sabotaged . | . . . . . . . . . . . Parts Stolen . | . . . . . . . . . . . Parts Stripped . | . . . . . . . . . . . Power Chain Reactions 2 | 2 . . . . . . . . . . Alert | -11 -10 -10 -10 -9 -8 -7 -7 -7 -6 -6 ------- Run | Yrd Mat Min Exi Min Mat Fac Low Low Fac Gar Maximum Alert Level . | . . . . . . . . . . . Low Security (%) 100 | 100 100 100 . 100 100 100 . . 100 100 Level 1 . | . . . . . . . . . . . Level 2 . | . . . . . . . . . . . Level 3 . | . . . . . . . . . . . Level 4 . | . . . . . . . . . . . Level 5 . | . . . . . . . . . . . High Security . | . . . . . . . . . . . Max Security . | . . . . . . . . . . . Peak Influence 161 | 15 161 . . 20 33 80 . . 15 15 Initial 6 | . . . . . . 5 . . . 6 Average 26 | 1 63 . . 4 11 25 . . 3 3 Influence Increases 788 | 25 278 . . 40 91 140 180 . 19 15 Destroy 0b10 Robot/C 500 | . 180 . . 20 40 100 160 . . . Destroy 0b10 Robot/NC 35 | 25 5 . . . 5 . . . . . Destroy Leader 104 | . 32 . . . 12 40 20 . . . Successful Hack 7 | . . . . . 3 . . . 4 . Disable Machine 30 | . . . . 15 15 . . . . . Destroy Structure 7 | . 1 . . 5 1 . . . . . Partial Spotted 30 | . . . . . 15 . . . 15 . Lose Combat Pursuer 75 | . 60 . . . . . . . . 15 Influence Decreases 773 | 25 278 . . 40 78 123 210 . 10 9 Entered New Map 23 | . . . . . . 8 12 . . 3 Time Decay 684 | 25 268 . . 40 68 115 158 . 10 . Lost Part 66 | . 10 . . . 10 . 40 . . 6 Squads Dispatched 1 | . . . . . . 1 . . . . Investigation 1 | . . . . . . 1 . . . . Extermination . | . . . . . . . . . . . Reinforcement . | . . . . . . . . . . . Assault . | . . . . . . . . . . . Garrison . | . . . . . . . . . . . Intercept . | . . . . . . . . . . . Searches Triggered . | . . . . . . . . . . . Construction Impeded . | . . . . . . . . . . . Haulers Reinforced . | . . . . . . . . . . . Active Scanning Responses . | . . . . . . . . . . . Cargo Convoy Interrupts . | . . . . . . . . . . . Stealth | -11 -10 -10 -10 -9 -8 -7 -7 -7 -6 -6 --------- Run | Yrd Mat Min Exi Min Mat Fac Low Low Fac Gar Distress Signals 3 | . 2 . . 1 . . . . . . Communications Jammed . | . . . . . . . . . . . Distress Signals . | . . . . . . . . . . . Times Spotted 74 | . 19 . . 8 5 6 18 . . 18 Peak Tracking Total 10 | . 5 . . 5 2 2 7 . . 10 Tactical Retreats 9 | . 3 . . . . . 3 . . 3 ECM-based Alert Blocks 17 | . . . . . . . 10 . . 7 Traps | -11 -10 -10 -10 -9 -8 -7 -7 -7 -6 -6 ------- Run | Yrd Mat Min Exi Min Mat Fac Low Low Fac Gar Traps Triggered 3 | . 1 . . . . 2 . . . . Indirectly . | . . . . . . . . . . . Trap Hack Attempts . | . . . . . . . . . . . Triggered . | . . . . . . . . . . . Disarmed . | . . . . . . . . . . . Reprogrammed . | . . . . . . . . . . . Reused . | . . . . . . . . . . . Traps Extracted . | . . . . . . . . . . . Installed . | . . . . . . . . . . . Triggered . | . . . . . . . . . . . Machines | -11 -10 -10 -10 -9 -8 -7 -7 -7 -6 -6 ---------- Run | Yrd Mat Min Exi Min Mat Fac Low Low Fac Gar Machines Disabled 2 | . . . . 1 1 . . . . . Max in Single Turn 1 | . . . . 1 1 . . . . . Machines Repaired . | . . . . . . . . . . . Machines Dismantled . | . . . . . . . . . . . Machines Sabotaged . | . . . . . . . . . . . Overloaded Fab Kills . | . . . . . . . . . . . Hacking | -11 -10 -10 -10 -9 -8 -7 -7 -7 -6 -6 --------- Run | Yrd Mat Min Exi Min Mat Fac Low Low Fac Gar Machines Accessed 9 | . 1 1 3 . 1 1 1 . 1 . Terminals 2 | . 1 . . . 1 . . . . . Fabricators . | . . . . . . . . . . . Repair Stations . | . . . . . . . . . . . Recycling Units . | . . . . . . . . . . . Scanalyzers . | . . . . . . . . . . . Garrison Access 2 | . . . . . . 1 . . 1 . Total Hacks 35 | . 1 1 25 . 1 4 1 . 2 . Successful 30 | . 1 1 25 . 1 . 1 . 1 . Failed 5 | . . . . . . 4 . . 1 . Catastrophic . | . . . . . . . . . . . Database Lockouts . | . . . . . . . . . . . Manual 2 | . 1 . 1 . . . . . . . Terminals 2 | . 1 . . . 1 . . . . . Fabricators . | . . . . . . . . . . . Repair Stations . | . . . . . . . . . . . Recycling Units . | . . . . . . . . . . . Scanalyzers . | . . . . . . . . . . . Garrison Access 6 | . . . . . . 4 . . 2 . Terminal Hacks 29 | . 1 1 25 . 1 . 1 . . . Record 25 | . . . 24 . 1 . . . . . Open Door 2 | . . 1 . . . . 1 . . . Branch Access Points 1 | . 1 . . . . . . . . . Proto ID Catalog 1 | . . . 1 . . . . . . . Fabricator Hacks . | . . . . . . . . . . . Repair Station Hacks . | . . . . . . . . . . . Recycling Unit Hacks . | . . . . . . . . . . . Scanalyzer . | . . . . . . . . . . . Garrison Access Hacks 1 | . . . . . . . . . 1 . Unlock Access 1 | . . . . . . . . . 1 . Unauthorized Hacks . | . . . . . . . . . . . Terminals . | . . . . . . . . . . . Fabricators . | . . . . . . . . . . . Repair Stations . | . . . . . . . . . . . Recycling Units . | . . . . . . . . . . . Scanalyzers . | . . . . . . . . . . . Garrison Access . | . . . . . . . . . . . Data Cores Recovered . | . . . . . . . . . . . Used . | . . . . . . . . . . . Hacking Detections 2 | . . . . . . 1 . . 1 . Full Trace Events 1 | . . . . . . 1 . . . . Feedback Events . | . . . . . . . . . . . Feedback Blocked . | . . . . . . . . . . . Robot Schematics Acquired . | . . . . . . . . . . . Robots Built . | . . . . . . . . . . . Authchips . | . . . . . . . . . . . Time . | . . . . . . . . . . . Total Robot Build Rating . | . . . . . . . . . . . Part Schematics Acquired . | . . . . . . . . . . . Parts Built . | . . . . . . . . . . . Authchips . | . . . . . . . . . . . Time . | . . . . . . . . . . . Total Part Build Rating . | . . . . . . . . . . . Part Studies Acquired . | . . . . . . . . . . . Parts Repaired . | . . . . . . . . . . . Time . | . . . . . . . . . . . Parts Recycled . | . . . . . . . . . . . Recycled Matter . | . . . . . . . . . . . Retrieved Matter . | . . . . . . . . . . . Retrieved Components . | . . . . . . . . . . . Parts Scanalyzed . | . . . . . . . . . . . Part Schematics Acquired . | . . . . . . . . . . . Parts Damaged . | . . . . . . . . . . . Bothacking | -11 -10 -10 -10 -9 -8 -7 -7 -7 -6 -6 ------------ Run | Yrd Mat Min Exi Min Mat Fac Low Low Fac Gar Used RIF Installer . | . . . . . . . . . . . Robots Hacked . | . . . . . . . . . . . Non-combat . | . . . . . . . . . . . Combat . | . . . . . . . . . . . Robot Hacks Applied . | . . . . . . . . . . . Relay Couplers Released . | . . . . . . . . . . . Fabnet Peak Effective % . | . . . . . . . . . . . Robots Rewired . | . . . . . . . . . . . Allies Hacked . | . . . . . . . . . . . Hacks Repelled . | . . . . . . . . . . . Allies | -11 -10 -10 -10 -9 -8 -7 -7 -7 -6 -6 -------- Run | Yrd Mat Min Exi Min Mat Fac Low Low Fac Gar Total Allies . | . . . . . . . . . . . Largest Group . | . . . . . . . . . . . Highest-Rated Group . | . . . . . . . . . . . Highest-Rated Ally . | . . . . . . . . . . . Total Orders . | . . . . . . . . . . . Ally Attacks 7 | . . . . 7 . . . . . . Total Damage 376 | . . . . 376 . . . . . . Kills 4 | . . . . 4 . . . . . . Allies Corrupted . | . . . . . . . . . . . Allies Melted . | . . . . . . . . . . . Turrets Deployed 1 | . . . . 1 . . . . . . Intel | -11 -10 -10 -10 -9 -8 -7 -7 -7 -6 -6 ------- Run | Yrd Mat Min Exi Min Mat Fac Low Low Fac Gar Active Infowar (turns) 3742 | 14 764 550 225 125 182 384 1386 8 50 54 Optics 552 | . . . . . 168 384 . . . . Seismic 2352 | 14 764 550 225 125 182 346 146 . . . ECM 1817 | . . . . . . 319 1386 8 50 54 Robot Analysis Total . | . . . . . . . . . . . Derelict Logs Recovered 4 | . . 2 . . . . 2 . . . Drone Launches . | . . . . . . . . . . . Drone Recoveries . | . . . . . . . . . . . Exploration | -11 -10 -10 -10 -9 -8 -7 -7 -7 -6 -6 ------------- Run | Yrd Mat Min Exi Min Mat Fac Low Low Fac Gar Turns Passed 3967 | 219 764 550 225 125 182 384 1386 8 50 74 Spaces Moved 3544 | 107 258 663 255 126 200 337 1294 26 145 133 Core 63 | 1 . . . . . . . . . 62 Treads 398 | 106 227 . . . . . 65 . . . Legs . | . . . . . . . . . . . Wheels 2252 | . 31 663 255 126 200 337 640 . . . Hover . | . . . . . . . . . . . Flight 831 | . . . . . . . 589 26 145 71 Fastest Speed 32 | 50 80 80 80 95 85 85 32 32 32 32 Average Speed 90 | 158 150 80 86 95 85 88 92 32 32 41 Slowest Speed 240 | 160 160 80 95 95 85 100 240 32 32 150 Overloaded Moves . | . . . . . . . . . . . Propulsion Burnouts . | . . . . . . . . . . . Robots Hopped . | . . . . . . . . . . . Potential Cave-ins . | . . . . . . . . . . . Cave-ins Triggered . | . . . . . . . . . . . Exploration Rate (%) 37 | 5 47 99 62 38 26 11 92 6 6 22 Regions Visited 10 Branch Regions 5 Pre-discovered Areas 2 | . . 1 1 . . . . . . . Known Exits Taken 3 | . 1 . . . . . 1 . 1 . Unknown Exits Taken 7 | 1 . 1 1 1 1 1 . 1 . . Scrap Searched 2 | . . 1 . . . . 1 . . . Spaces Dug . | . . . . . . . . . . . Terrain Destroyed 13 | 4 . . . 6 1 . 2 . . . Melee . | . . . . . . . . . . . Projectile 9 | . . . . 6 1 . 2 . . . AOE 4 | 4 . . . . . . . . . . Terrain Rammed . | . . . . . . . . . . . Walls Destroyed . | . . . . . . . . . . . Machines Disabled . | . . . . . . . . . . . Actions | -11 -10 -10 -10 -9 -8 -7 -7 -7 -6 -6 --------- Run | Yrd Mat Min Exi Min Mat Fac Low Low Fac Gar Total 4202 | 136 592 682 261 132 210 420 1445 25 147 152 Wait 482 | 1 300 11 . 3 4 69 93 . 1 . Move 3534 | 106 257 662 254 125 199 336 1293 25 144 133 Hop . | . . . . . . . . . . . Pick Up 33 | 10 4 . 2 1 2 8 5 . . 1 Fast Attach 11 | 7 . . . . 1 2 . . 1 . Attach 21 | . 2 . 2 . 3 3 9 . . 2 Detach 6 | . 1 . 1 . . 1 2 . . 1 Swap 5 | . 1 1 . . 1 . 2 . . . Drop 14 | 2 3 1 2 2 . . 2 . 1 1 Fire 71 | 10 23 . . . . . 36 . . 2 Melee . | . . . . . . . . . . . Ram 21 | . . 7 . 1 . 1 . . . 12 Kick . | . . . . . . . . . . . Crush 1 | . 1 . . . . . . . . . Escape Stasis . | . . . . . . . . . . . Rewire 3 | . . . . . . . 3 . . . Trap . | . . . . . . . . . . . Miscellaneous . | . . . . . . . . . . . Route ------- -11/Scrapyard -10/Materials (discovered 4 exits: [*Mat x2] / *Min / [*Sub]) -10/Mines (discovered 3 exits: [*Mat x2] / *Exi) -10/Exiles (discovered 2 exits: [*Min x2]) -9/Mines -8/Materials (discovered 2 exits: *Fac / Sto) -7/Factory -7/Lower Caves -7/Lower Caves -6/Factory -6/Garrison History --------- Turn | Location | Event 9 | -11/Scrapyard | Discovered new exit (range 15) 220 | -11/Scrapyard | Entered Materials 311 | -10/Materials | Build established: Mutant 435 | -10/Materials | Identified exit to Mines 519 | -10/Materials | Discovered new exit (range 7) 766 | -10/Materials | Discovered new exit (range 8) 933 | -10/Materials | Discovered new exit (range 10) 984 | -10/Materials | Entered Mines 1012 | -10/Mines | Discovered new exit (range 7) 1062 | -10/Mines | Met a Derelict bent on vengeance 1203 | -10/Mines | Learned location of Zion (-6) 1256 | -10/Mines | Build established: Scavenger-Mutant 1421 | -10/Mines | Met a Derelict who couldn't figure out how to use a Trap Extractor 1453 | -10/Mines | Discovered new exit (range 5) 1521 | -10/Mines | Deemed a non-threat by the Exiles lab entrance 1522 | -10/Mines | Discovered new exit (range 5) 1534 | -10/Mines | Entered Exiles 1554 | -10/Exiles | Met 8R-AWN 1559 | -10/Exiles | Discovered new exit (range 14) 1591 | -10/Exiles | Met EX-HEX 1612 | -10/Exiles | Met EX-BIN 1625 | -10/Exiles | Aligned with FarCom system 1626 | -10/Exiles | Given EX-Vault access code 1646 | -10/Exiles | Opened EX-Vault 1653 | -10/Exiles | Found AWS/Thermal 1659 | -10/Exiles | Found Deploy-a-Sentry 1682 | -10/Exiles | Warned to stay clear of 0b10 Research branches 1708 | -10/Exiles | Met EX-DEC 1752 | -10/Exiles | Discovered new exit (range 10) 1759 | -10/Exiles | Stole two prototypes: AWS/Thermal, Deploy-a-Sentry 1759 | -10/Exiles | Entered Mines 1760 | -9/Mines | Assembled infested the area 1765 | -9/Mines | Assisted by a Guerilla fighting off Assembled 1804 | -9/Mines | DAS Turret deployed 1843 | -9/Mines | Discovered new exit (range 16) 1884 | -9/Mines | Entered Materials 1884 | -8/Materials | Evolved 4 slots: Propulsion x2, Utility x2 1885 | -8/Materials | Identified exit to Storage 2045 | -8/Materials | Discovered new exit (range 10) 2066 | -8/Materials | Entered Factory 2066 | -7/Factory | Evolved 2 slots: Power x1, Utility x1 2068 | -7/Factory | FarCom data flow suspended 2431 | -7/Factory | Discovered new exit (range 11) 2450 | -7/Factory | Entered Lower Caves 2902 | -7/Lower Caves | Identified exit to Lower Caves 3072 | -7/Lower Caves | Learned Factory trap positions 3137 | -7/Lower Caves | Ambushed by research squad 3147 | -7/Lower Caves | AWS/Thermal suddenly broke down 3202 | -7/Lower Caves | Lost 5 parts (4n1u) 3266 | -7/Lower Caves | Lost 3 parts (1p2n) 3717 | -7/Lower Caves | Attracted the attention of an 0b10 base 3836 | -7/Lower Caves | Entered another Lower Caves area 3842 | -7/Lower Caves | Discovered new exit (range 5) 3844 | -7/Lower Caves | Entered Factory 3844 | -6/Factory | Evolved 2 slots: Utility x2 3845 | -6/Factory | Loaded intel: 101 trap records 3893 | -6/Factory | Identified exit to Garrison 3894 | -6/Factory | Entered Garrison 3898 | -6/Garrison | Spotted B-90 Cyclops 3899 | -6/Garrison | Spotted B-75 Beast 3940 | -6/Garrison | Triggered checkpoint 3946 | -6/Garrison | Core integrity fell below 50% 3962 | -6/Garrison | Core integrity fell below 20% 3968 | -6/Garrison | Triggered checkpoint 3968 | -6/Garrison | Destroyed by S-27 Virus with Autogun Last Messages --------------- VTOL Module destroyed. Lgt. Nuclear Core destroyed. Hvy. Machine Gun destroyed. Slammed into S-27 Virus. Targeting Computer destroyed. Beams of light sweep through the air. An alarm sounds. C-45 Heavy ARC bursts open, deploying its payload. S-27 Virus unfolds itself. Acquired 10 matter. ECM Suite destroyed. Slammed into S-27 Virus. Core Analyzer broken. Destabilizing: Short circuit. Slammed into S-27 Virus. Destabilizing: System corrupted (+2). Beams of light sweep through the air. An alarm sounds. Slammed into S-27 Virus. Map ----- +----------------------------------------------------+ | ????????????????????????????????# | | ????????????????????#####???????## "###"#""# | | ????????????????????# #????????# ##???#### | | ????????????????????# ########## #???????? | | ????????????????????# #???????? | | ??????????????####### [ #???????? | | ??????????????# ############### #???????? | | ??????????????# ##?????????????# #???????? | | ??????????????# ###?????????##### #???????? | | ??????????????# #?????????#" #???????? | | ??????????????# #?????????#"T"# #???????? | | ??????????????## " #?????????##### #???????? | | ???????????????##%################ #######?? | | ????????????????#" | | ????????????????# ### ########## | | ????????????????# #?# #????????# ######## | | ??????????????### #?#####????????# #???????? | | ??????????????#"# #??????????????# #???????? | | ??????????????#" #??????????????# #???????? | | ??????????????#" #??????????????# #???????? | | ??????????????#" #??????????????# #???????? | | ??????######??#"# #??????????????# #???????? | | ?????## ##?### #???###????????# #???????? | | ?????# #???# #??ss #????????# #???????? | | ?????# #####s### s #####????# ???????? | | ?????#A %%sssss%@s ???????? | | ?????## ##################?????###???????? | | ??????######????????????????????????????????? | | ????????????????????????????????????????????? | | ????????????????????????????????????????????? | | ????????????????????????????????????????????? | | ????????????????????????????????????????????? | | ????????????????????????????????????????????? | | ????????????????????????????????????????????? | | ????????????????????????????????????????????? | | ????????????????????????????????????????????? | | ????????????????????????????????????????????? | | ????????????????????????????????????????????? | | ????????????????????????????????????????????? | | ????????????????????????????????????????????? | | ????????????????????????????????????????????? | | ????????????????????????????????????????????? | | ????????????????????????????????????????????? | | ????????????????????????????????????????????? | | ????????????????????????????????????????????? | | ????????????????????????????????????????????? | | ????????????????????????????????????????????? | | ????????????????????????????????????????????? | | ????????????????????????????????????????????? | | ????????????????????????????????????????????? | +----------------------------------------------------+ Best States ------------- Heat Dissipation 37 Energy Generation 19 Energy Capacity 290 Matter Stores 300 Matter Capacity 300 Sight Range 18 Terrain Scan Density 210 ECM Strength 1 Armor Coverage 225 Evasion (%) 63 Targeting Accuracy 5 Core Analysis 6 Recoil Reduction 4 Item Schematics ----------------- None Robot Schematics ------------------ None Fabricated ------------ Nothing Repaired ---------- Nothing Studied --------- None Alien Tech Used ----------------- None Achievements -------------- I Survived The Infestation Let Me Out Of Here Librarian Challenges ------------ None Game ------ Seed DispersalPhaseMiniperforator Manual? 0 Play Time 00:42:24 Cumulative 9.5 hours Start 2026.03.05 @ 23:37:38 End 2026.03.06 @ 00:19:09 Sessions 1 Manual Loads 0 Difficulty Rogue Special Mode None Game No. 38 Rogue 38 Adventurer 0 Explorer 0 Win Type - Total 0 Types 0/0/0/0/0/0/0/0/0/0 Lore% 6 Gallery% 11 Achievement% 14 Wizard Run 0 Options --------- Layout 1 ASCII 0 Keyboard 0 Movement Numpad Keybinds 0 Fullscreen 2 Font 24/Terminus Map View 50x35 Zoom Use 0% Tactical HUD 0 Map Filters NONE Filters NONE Steam 1 RUN: bf09c9fc-ac46-4f67-8cfe-f6e108001c41